bitfinex/quotes_ETHUSD_20251119
["timestamp","ask_amount","ask_price","bid_price","bid_amount"]
[1763541424499,0.405504,3101.7,3101.2,0.6733]
[1763541424793,0.6733,3101.3,3101.2,0.6733]
[1763541425302,0.405504,3101.7,3101.2,0.4866]
[1763541425582,0.4806,3101.3,3100.8,0.001]
[1763541426358,0.00904963,3101.2,3100.8,0.001]
[1763541427283,0.093,3100.9,3100.8,0.001]
[1763541427485,0.69965363,3100.9,3100.8,0.001]
[1763541427687,1.41059018,3100.9,3100.8,0.001]
[1763541428184,0.405504,3100.8,3100.4,0.001]
[1763541428384,0.0048,3100.5,3100.4,0.001]
[1763541428753,0.6466,3100.5,3100.4,0.001]
[1763541428993,0.6466,3100.5,3100.4,0.9429]
[1763541428994,0.6418,3100.5,3100.4,0.9429]
[1763541429154,0.405504,3101.1,3100.4,0.9429]
[1763541429353,0.9429,3100.8,3100.4,0.9429]
[1763541429558,0.9429,3100.8,3100.5,0.4861]
[1763541429763,0.9429,3100.8,3100.7,0.4558]
[1763541429964,0.9429,3100.8,3100.5,0.4861]
[1763541430174,0.9429,3100.8,3100.4,0.001]
[1763541430459,0.9429,3100.8,3100.4,0.4871]
[1763541431062,0.00904963,3100.7,3100.4,0.4871]
[1763541431391,0.00904963,3100.7,3100.4,0.001]
[1763541431791,0.405504,3100.7,3100.4,0.001]
[1763541432089,0.495404,3100.5,3100.4,0.001]
[1763541432304,1.42519893,3100.5,3100.4,0.001]
[1763541432468,1.90819893,3100.5,3100.4,0.001]
[1763541432994,2.46077703,3100.5,3100.4,0.001]
[1763541433170,3.91365308,3100.5,3100.4,0.001]
[1763541434068,2.81519157,3100.5,3100.4,0.001]
[1763541434378,2.33219157,3100.5,3100.4,0.001]
[1763541437134,3.37012461,3100.5,3100.4,0.001]
[1763541437343,3.91365308,3100.5,3100.4,0.001]
[1763541437715,4.39975308,3100.5,3100.4,0.001]
[1763541437911,3.91675308,3100.5,3100.4,0.001]
[1763541438113,2.81829157,3100.5,3100.4,0.001]
[1763541439043,2.72839157,3100.5,3100.4,0.9429]
[1763541439232,1.79859664,3100.5,3100.4,0.4568]
[1763541439550,1.39309264,3100.5,3100.4,0.4568]
[1763541440105,0.4861,3100.5,3100.4,0.9429]
[1763541440308,1.08941188,3101.6,3100.4,0.9429]
[1763541440617,0.9429,3101.2,3101.1,0.4558]
[1763541440853,1.08941188,3101.6,3101.1,0.4558]
[1763541441209,0.4861,3101.5,3101.1,0.4558]
[1763541441422,0.99689264,3101.2,3100.4,0.001]
[1763541441641,0.0009,3101.0,3100.4,0.001]
[1763541442105,0.405504,3101.1,3100.4,0.4871]
[1763541442306,0.405504,3100.9,3100.4,0.4871]
[1763541443045,0.4871,3100.8,3100.4,0.4871]
[1763541443418,0.234528,3101.0,3100.7,0.4558]
[1763541443628,0.405504,3101.1,3100.9,0.4589]
[1763541443845,0.405504,3101.1,3100.4,0.4871]
[1763541444011,0.4871,3100.9,3100.4,0.4871]
[1763541444208,2.44295415,3101.9,3100.4,0.4871]
[1763541444411,0.405504,3101.8,3100.8,0.4589]
[1763541444706,0.405504,3101.6,3100.8,0.4589]
[1763541444941,0.405504,3101.6,3100.9,0.4595]
[1763541445131,0.29389545,3101.7,3100.9,0.4595]
[1763541445329,0.405504,3101.6,3100.9,0.4595]
[1763541447125,0.407504,3101.6,3100.9,0.4595]
[1763541447955,0.002,3101.6,3101.5,0.6417]
[1763541448425,0.002,3101.6,3101.5,1.1012]
[1763541448629,0.0012,3101.6,3101.5,1.1012]
[1763541449655,0.01024963,3101.6,3101.2,0.1828]
[1763541449849,0.0012,3101.6,3101.2,0.1828]
[1763541450010,0.0012,3101.6,3101.5,0.4589]
[1763541450635,0.4607,3101.6,3101.2,0.1828]
[1763541450811,0.4607,3101.6,3101.2,0.6423]
[1763541451623,0.4607,3101.6,3101.5,0.4589]
[1763541451827,0.0012,3101.6,3101.5,0.4589]
[1763541452028,0.0012,3101.6,3101.5,0.9184]
[1763541464327,0.0012,3101.6,3101.5,0.9194]
[1763541466267,0.0012,3101.6,3101.5,0.4599]
[1763541466429,0.0012,3101.6,3101.5,0.9156]
[1763541467366,0.0012,3101.6,3101.5,0.4599]
[1763541468051,0.128,3101.6,3101.5,0.001]
[1763541469000,0.0012,3101.6,3101.5,0.9335]
[1763541472088,0.0012,3101.6,3101.5,0.4778]
[1763541472287,0.0012,3101.6,3101.5,0.9335]
[1763541473498,0.0004,3101.6,3101.5,0.9335]
[1763541482416,0.0004,3101.6,3101.5,1.339004]
[1763541482992,0.0004,3101.6,3101.5,1.37124646]
[1763541485611,0.002,3102.3,3101.9,0.4768]
[1763541485790,0.002,3102.3,3102.2,1.078404]
[1763541486002,0.002,3102.3,3102.2,1.11063918]
[1763541486202,0.002,3102.3,3102.2,1.56633918]
[1763541487629,0.002,3102.3,3102.2,1.534104]
[1763541487999,0.002,3102.3,3102.2,1.1286]
[1763541488502,0.002,3102.3,3102.2,1.1431]
[1763541488836,0.002,3102.3,3102.2,1.548604]
[1763541489033,0.002,3102.3,3102.2,1.58083918]
[1763541489231,0.002,3102.3,3102.2,1.548604]
[1763541494137,0.002,3102.7,3102.5,0.405504]
[1763541494315,0.002,3102.7,3102.6,0.89883503]
[1763541494510,0.002,3102.7,3102.6,0.866604]
[1763541494708,0.002,3102.7,3102.6,1.36903503]
[1763541495837,0.002,3102.7,3102.6,1.336804]
[1763541496242,0.002,3102.7,3102.6,0.866604]
[1763541496418,0.002,3102.7,3102.6,0.4611]
[1763541496735,0.002,3102.7,3102.6,1.36903503]
[1763541497120,0.002,3102.7,3102.6,1.336804]
[1763541498037,0.002,3102.7,3102.6,0.866604]
[1763541498428,0.002,3102.7,3102.6,1.336804]
[1763541498614,0.0012,3102.7,3102.6,1.336804]
[1763541498819,0.0012,3102.7,3102.6,0.9313]
[1763541499146,0.0012,3102.7,3102.6,1.660504]
[1763541499342,0.0012,3102.7,3102.6,1.8265544]
[1763541500841,0.0012,3102.7,3102.6,1.85878543]
[1763541504160,0.0012,3102.7,3102.6,1.8265544]
[1763541505213,0.0012,3102.7,3102.6,1.85878543]
[1763541506511,0.0012,3102.7,3102.6,1.8265544]
[1763541506716,0.0012,3102.7,3102.6,1.5028544]
[1763541508575,0.0012,3102.7,3102.6,1.5108544]
[1763541511966,0.0012,3102.7,3102.6,1.86678543]
[1763541514566,0.0012,3102.7,3102.6,1.5108544]
[1763541516345,0.3231,3102.7,3102.5,0.001]
[1763541516534,0.0012,3102.7,3102.5,0.001]
[1763541516736,0.5801,3102.6,3102.5,0.001]
[1763541516959,0.3213,3102.6,3102.5,0.001]
[1763541517186,0.0012,3102.7,3102.5,0.001]
[1763541517669,0.3206,3102.6,3102.5,0.001]
[1763541519083,0.0012,3102.7,3102.5,0.467]
[1763541519266,0.0012,3102.7,3102.6,0.4879]
[1763541519769,0.0012,3102.7,3102.6,0.9779]
[1763541521264,0.0012,3102.7,3102.6,1.01013103]
[1763541522560,0.2814,3102.7,3102.5,0.001]
[1763541523588,0.0004,3102.7,3102.5,0.001]
[1763541523780,0.0004,3102.7,3102.6,0.893404]
[1763541524172,0.0004,3102.7,3102.6,1.383404]
[1763541526558,0.0004,3102.7,3102.6,1.41563503]
[1763541526758,0.0004,3102.7,3102.6,1.6479978]
[1763541527359,0.0004,3102.7,3102.6,1.28717527]
[1763541527562,0.0004,3102.7,3102.6,1.74494424]
[1763541528792,0.0004,3102.7,3102.6,1.61576677]
[1763541528993,0.0004,3102.7,3102.6,1.12576677]
[1763541529771,0.2806,3102.7,3102.6,0.405504]
[1763541529984,0.7327,3102.7,3102.5,0.001]
[1763541530181,0.0045,3102.6,3102.5,0.001]
[1763541530379,0.4583,3102.6,3102.5,0.001]
[1763541531999,0.4583,3102.6,3102.2,0.001]
[1763541532172,0.2757,3102.3,3102.2,0.001]
[1763541532599,0.7295,3102.3,3102.2,0.001]
[1763541533597,0.2757,3102.3,3102.2,0.001]
[1763541533800,0.0004,3102.7,3102.2,0.001]
[1763541533973,0.2802,3102.3,3102.2,0.001]
[1763541534380,0.7323,3102.3,3102.2,0.001]
[1763541540684,0.2757,3102.1,3101.9,0.001]
[1763541540910,0.0072,3102.0,3101.9,0.001]
[1763541541185,0.461,3102.0,3101.9,0.001]
[1763541544434,0.12926556,3102.6,3101.9,0.001]
[1763541544612,0.4538,3102.5,3101.9,0.4889]
[1763541545133,0.0004,3102.7,3102.4,0.4879]
[1763541545293,0.0004,3102.7,3102.0,0.49]
[1763541545497,0.0004,3102.7,3102.1,0.1981]
[1763541545830,0.0004,3102.7,3101.9,0.001]
[1763541545987,0.4538,3102.6,3101.9,0.001]
[1763541548305,0.453,3102.6,3101.9,0.001]
[1763541549718,0.0004,3102.7,3101.9,0.001]
[1763541550421,0.4781,3102.7,3101.9,0.001]
[1763541550837,0.4781,3102.7,3101.9,0.4852]
[1763541554247,0.0025,3102.0,3101.8,0.001]
[1763541554452,0.4781,3102.7,3101.8,0.001]
[1763541554765,0.4777,3102.6,3101.8,0.001]
[1763541556431,0.2549,3101.9,3101.8,0.001]
[1763541556634,0.4777,3102.6,3101.8,0.001]
[1763541556939,0.4777,3102.5,3101.8,0.001]
[1763541557231,0.2549,3101.9,3101.8,0.001]
[1763541560738,0.0004,3102.7,3101.8,0.9474]
[1763541560739,0.4777,3102.6,3101.8,0.9474]
[1763541561077,0.0004,3102.7,3102.0,0.4622]
[1763541561607,0.0004,3102.7,3102.1,0.03223622]
[1763541562029,0.0004,3102.7,3102.2,0.4842]
[1763541562229,0.0004,3102.7,3102.3,0.03223414]
[1763541563330,0.0004,3102.7,3102.3,0.4801]
[1763541563522,0.0004,3102.7,3102.4,0.0322331]
[1763541563718,0.0004,3102.7,3102.0,0.4801]
[1763541563917,0.0004,3102.7,3102.1,0.51233622]
[1763541567444,0.0004,3102.7,3102.6,0.4541]
[1763541568444,0.0004,3102.7,3102.6,0.41162]
[1763541569744,0.072,3102.7,3102.1,0.4801]
[1763541569943,0.4773,3102.7,3102.1,0.4801]
[1763541570255,0.4773,3102.7,3101.9,0.4811]
[1763541571426,0.0004,3102.7,3102.6,0.4541]
[1763541571857,0.0004,3102.7,3102.6,1.339704]
[1763541572549,0.0004,3102.7,3102.6,1.37193503]
[1763541573345,0.0016,3103.1,3103.0,0.4541]
[1763541574268,0.0016,3103.1,3102.7,0.4801]
[1763541575227,0.0016,3103.1,3103.0,0.4541]
[1763541575960,0.0016,3103.1,3102.7,0.4801]
[1763541576966,0.0016,3103.1,3103.0,0.4541]
[1763541578336,0.1615,3103.1,3102.7,0.4801]
[1763541578536,0.1615,3103.1,3101.9,0.3247]
[1763541578744,0.6265,3103.1,3102.0,0.4927]
[1763541578942,0.6265,3103.1,3102.1,0.405504]
[1763541579160,0.6265,3103.1,3102.0,0.4927]
[1763541579374,0.1615,3103.1,3102.1,0.03223622]
[1763541579533,0.0016,3103.1,3102.3,0.405504]
[1763541580060,0.0016,3103.1,3102.4,0.4927]
[1763541582164,0.1717,3102.5,3101.9,0.4937]
[1763541582751,0.1809,3102.6,3101.9,0.4937]
[1763541583151,0.6535,3102.9,3102.0,0.405504]
[1763541583575,0.6563,3102.9,3102.0,0.405504]
[1763541583755,0.6563,3102.9,3102.0,0.898204]
[1763541583962,0.1913,3102.9,3102.0,0.898204]
[1763541584265,0.465,3102.8,3102.1,0.4927]
[1763541585665,0.1614,3102.2,3102.0,0.001]
[1763541586374,0.0046,3102.1,3102.0,0.001]
[1763541586554,0.465,3102.8,3102.1,0.4632]
[1763541586748,0.1913,3102.9,3102.1,0.9559]
[1763541587073,0.465,3102.8,3102.1,0.9559]
[1763541587438,0.1614,3102.2,3102.0,0.001]
[1763541587643,0.0016,3102.1,3102.0,0.001]
[1763541589058,0.4666,3102.1,3102.0,0.001]
[1763541589447,0.0016,3102.1,3102.0,0.001]
[1763541590670,0.465,3102.4,3102.0,0.001]
[1763541590976,0.1614,3102.1,3102.0,0.001]
[1763541592140,0.1913,3102.9,3102.0,0.001]
[1763541592347,0.1614,3102.1,3102.0,0.001]
[1763541596093,0.17559806,3102.8,3102.0,0.4642]
[1763541596258,0.465,3102.7,3102.0,0.9569]
[1763541597493,0.1913,3102.9,3102.0,0.4642]
[1763541597668,0.0016,3103.1,3102.1,0.52493622]
[1763541597871,0.94432695,3103.1,3102.1,0.52493622]
[1763541598070,0.0016,3103.1,3102.1,0.52493622]
[1763541598301,0.0008,3103.1,3102.1,0.52493622]
[1763541598990,0.0008,3103.1,3103.0,0.4632]
[1763541600106,0.1631,3103.1,3102.7,0.4927]
[1763541600404,0.4602,3102.8,3102.4,0.405504]
[1763541600762,0.4602,3102.8,3102.4,0.898204]
[1763541601104,0.4602,3102.8,3102.3,0.405504]
[1763541601309,0.6275,3102.8,3102.2,0.4927]
[1763541601460,0.4602,3102.8,3102.0,0.001]
[1763541601764,0.1673,3102.7,3102.0,0.4937]
[1763541601965,0.1673,3102.7,3102.0,0.001]
[1763541602194,0.4572,3102.1,3102.0,0.001]
[1763541602620,0.6274,3102.1,3102.0,0.001]
[1763541607589,1.32274039,3102.1,3102.0,0.001]
[1763541607786,0.6274,3102.1,3102.0,0.001]
[1763541608228,0.84660214,3102.1,3102.0,0.001]
[1763541608624,1.32274039,3102.1,3102.0,0.001]
[1763541608828,0.6274,3102.1,3102.0,0.001]
[1763541609328,1.032904,3102.1,3102.0,0.001]
[1763541609616,2.59752539,3102.1,3102.0,0.001]
[1763541609820,4.7192386,3102.1,3102.0,0.001]
[1763541610037,4.29667659,3102.1,3102.0,0.001]
[1763541611030,3.8479115,3102.1,3102.0,0.001]
[1763541612227,5.00489128,3102.1,3102.0,0.001]
[1763541612527,4.29667659,3102.1,3102.0,0.001]
[1763541612894,7.08419873,3102.0,3101.8,0.001]
[1763541613098,10.63092394,3102.0,3101.8,0.001]
[1763541613420,11.07968903,3102.0,3101.8,0.001]
[1763541613619,11.55588417,3102.0,3101.8,0.001]
[1763541613824,0.405504,3101.9,3101.8,0.001]
[1763541614036,0.561404,3101.6,3101.3,0.001]
[1763541614333,0.561404,3101.6,3100.1,0.001]
[1763541614334,1.31249664,3101.3,3100.1,0.001]
[1763541614521,7.82720273,3100.9,3100.1,0.001]
[1763541614701,9.39196986,3100.9,3100.1,0.001]
[1763541615034,9.86246986,3100.9,3100.1,0.001]
[1763541615247,10.7287605,3100.9,3100.1,0.001]
[1763541615412,11.17752559,3100.9,3100.1,0.001]
[1763541616337,5.47651464,3100.9,3100.1,0.001]
[1763541616503,4.55155441,3100.9,3100.1,0.001]
[1763541617035,5.47651464,3100.9,3100.1,0.001]
[1763541618246,4.610224,3100.9,3100.1,0.001]
[1763541618455,4.61927363,3100.9,3100.1,0.001]
[1763541619248,1.31249664,3100.8,3100.1,0.001]
[1763541619555,0.0186,3100.5,3100.1,0.001]
[1763541620047,0.4891,3100.5,3100.1,0.001]
[1763541620580,1.31249664,3100.4,3100.1,0.001]
[1763541620866,0.557104,3100.2,3100.1,0.001]
[1763541621035,1.00586909,3100.2,3100.1,0.001]
[1763541621239,1.47333975,3100.2,3100.1,0.001]
[1763541621435,0.876004,3100.1,3099.1,0.19234]
[1763541621641,0.44573575,3100.2,3099.2,0.49686639]
[1763541621840,0.4705,3100.1,3099.2,0.4646]
[1763541622066,0.4705,3100.1,3099.1,0.1976]
[1763541622658,0.405504,3100.4,3099.2,0.4646]
[1763541622844,0.4705,3100.0,3099.1,0.1976]
[1763541623047,0.0976,3099.9,3099.1,0.1976]
[1763541623248,0.4818,3099.8,3099.1,0.1976]
[1763541623444,0.0968,3099.9,3099.1,0.1976]
[1763541623760,0.4818,3100.2,3099.1,0.6929]
[1763541624154,0.4818,3100.2,3099.2,0.4953]
[1763541625156,0.1942,3100.3,3099.2,0.4953]
[1763541625353,0.49084963,3100.2,3099.2,0.4953]
[1763541625571,0.49084963,3100.2,3099.1,0.1976]
[1763541625572,0.405504,3100.1,3099.1,0.1976]
[1763541625771,0.4818,3100.1,3099.2,0.4953]
[1763541627643,0.47619514,3100.0,3099.1,0.4953]
[1763541627843,0.90699264,3100.0,3099.1,0.4953]
[1763541628045,1.23839987,3099.9,3099.1,0.4953]
[1763541629249,1.23839987,3099.9,3098.9,0.001]
[1763541629444,1.23839987,3099.9,3098.9,0.4963]
[1763541629782,1.23839987,3099.9,3099.0,0.6929]
[1763541629990,0.4818,3099.8,3099.0,0.1976]
[1763541630752,0.4818,3099.8,3099.0,0.6929]
[1763541631352,0.19295254,3099.7,3099.0,0.6929]
[1763541631891,0.67475254,3099.7,3099.0,0.6929]
[1763541632394,0.67475254,3099.7,3099.0,0.1976]
[1763541632757,0.67475254,3099.7,3099.0,0.6929]
[1763541633379,0.19295254,3099.7,3099.1,0.4953]
[1763541633578,1.44842385,3099.9,3099.1,0.4953]
[1763541633793,1.44842385,3099.9,3098.9,0.001]
[1763541633794,1.44842385,3099.9,3098.9,0.4963]
[1763541633964,0.69182398,3099.8,3098.9,0.4963]
[1763541634291,0.4818,3099.9,3098.9,0.4963]
[1763541634496,1.17362398,3099.9,3098.9,0.4963]
[1763541635061,0.69182398,3099.9,3098.9,0.4963]
[1763541635267,0.69182398,3100.0,3098.9,0.4963]
[1763541635497,0.18319597,3100.1,3099.0,0.001]
[1763541635972,0.18319597,3100.1,3099.1,0.6842]
[1763541636360,0.18319597,3100.1,3099.2,0.4953]
[1763541637075,0.1608,3099.3,3099.0,0.001]
[1763541637569,0.46185897,3099.3,3099.0,0.001]
[1763541637774,1.32814961,3099.3,3099.0,0.001]
[1763541637978,1.32814961,3099.3,3098.3,0.001]
[1763541637979,0.1512,3098.4,3096.3,0.1926]
[1763541638198,6.27470609,3097.9,3095.5,0.4734]
[1763541638502,0.86828264,3096.7,3095.5,0.4734]
[1763541638685,0.30105897,3096.6,3095.5,0.4734]
[1763541638899,0.69182398,3096.5,3095.6,0.03230391]
[1763541639071,1.16934161,3096.7,3095.6,0.03230391]
[1763541639072,0.69182398,3096.4,3095.6,0.03230391]
[1763541639272,0.69182398,3096.5,3095.4,0.666]
[1763541639476,0.86828264,3096.2,3095.4,0.1926]
[1763541639692,2.14832203,3096.4,3095.4,0.1926]
[1763541639693,1.56010662,3096.1,3095.4,0.1926]
[1763541639893,1.86068312,3096.0,3095.4,0.1926]
[1763541640105,0.87789229,3095.9,3095.1,0.4734]
[1763541640276,0.90699264,3095.8,3095.1,0.1926]
[1763541640589,0.69182398,3095.8,3095.1,0.1926]
[1763541640792,0.4936,3095.8,3094.7,0.666]
[1763541641205,0.22397749,3095.7,3094.8,0.4734]
[1763541641402,0.87789229,3095.9,3094.8,0.4734]
[1763541641711,0.18606831,3095.9,3094.8,0.4734]
[1763541641873,0.86828264,3095.9,3094.8,0.4734]
[1763541642071,1.56010662,3096.0,3094.8,0.4734]
[1763541642302,1.36188264,3096.0,3094.8,0.4734]
[1763541642521,0.4936,3095.9,3094.8,0.4734]
[1763541642897,1.31249664,3095.8,3094.7,0.1926]
[1763541643130,0.4359,3094.8,3094.0,0.1926]
[1763541643428,1.59881662,3095.3,3094.2,0.4734]
[1763541643589,0.4936,3095.2,3094.0,0.1926]
[1763541643787,1.18542398,3095.2,3094.0,0.1926]
[1763541643983,1.18542398,3095.2,3094.0,0.666]
[1763541644183,0.29606993,3095.1,3094.0,0.666]
[1763541644419,0.29606993,3095.1,3094.1,0.4734]
[1763541645488,0.78966993,3095.1,3094.1,0.4734]
[1763541645789,1.48149391,3095.1,3094.0,0.1926]
[1763541646123,1.18542398,3095.0,3094.0,0.1926]
[1763541646318,1.18542398,3095.0,3093.9,0.1926]
[1763541646319,0.90699264,3094.8,3093.9,0.1926]
[1763541646615,0.90699264,3094.8,3093.8,0.4734]
[1763541646616,0.42611118,3094.7,3093.8,0.4734]
[1763541646824,0.4936,3094.6,3093.5,0.666]
[1763541647026,0.4936,3094.6,3093.1,0.4734]
[1763541647190,6.17720609,3094.4,3093.1,0.4734]
[1763541647394,0.90699264,3093.8,3093.1,0.1926]
[1763541647604,1.52471325,3094.3,3093.2,0.4734]
[1763541647935,1.17948215,3094.2,3093.2,0.4734]
[1763541648123,1.52471325,3094.3,3093.2,0.4734]
[1763541648323,0.77019193,3094.2,3093.2,0.4734]
[1763541648705,2.01751325,3094.3,3094.1,0.4996]
[1763541648706,0.61692061,3094.3,3094.1,0.4996]
[1763541648926,0.666,3094.5,3094.2,0.4996]
[1763541649236,0.666,3094.5,3093.3,0.4734]
[1763541651539,1.1596,3094.5,3093.3,0.4734]
[1763541651922,0.4359,3093.4,3091.7,0.1926]
[1763541652130,0.90699264,3094.2,3092.5,0.4734]
[1763541652330,1.45410529,3094.3,3092.5,0.4734]
[1763541652517,1.17727489,3094.2,3092.5,0.4734]
[1763541652723,0.4734,3094.1,3092.5,0.4734]
[1763541652938,0.967,3094.1,3092.5,0.4734]
[1763541653244,0.4936,3094.0,3092.5,0.4734]
[1763541653455,0.4936,3094.0,3091.7,0.1926]
[1763541653744,0.73165272,3093.9,3092.4,0.4734]
[1763541653926,0.4734,3094.1,3092.6,0.405504]
[1763541654117,0.4734,3094.1,3092.7,0.4734]
[1763541654757,0.68256853,3094.6,3092.8,0.43783716]
[1763541654939,0.4936,3094.4,3092.7,0.4734]
[1763541655150,0.4734,3094.3,3093.3,0.001]
[1763541655553,0.4734,3094.3,3093.4,0.666]
[1763541655766,0.00904963,3094.2,3093.4,0.666]
[1763541656539,0.00904963,3094.2,3093.5,0.4734]
[1763541656785,0.00904963,3094.3,3093.5,0.4734]
[1763541657254,0.00904963,3094.6,3093.5,0.4734]
[1763541657470,0.97604963,3094.6,3093.5,0.4734]
[1763541659562,0.4936,3094.9,3093.5,0.4734]
[1763541659756,0.4734,3094.7,3093.5,0.4734]
[1763541660942,0.4936,3094.9,3093.5,0.4734]
[1763541661150,0.1808,3095.0,3093.6,0.405504]
[1763541661337,0.50264963,3094.9,3093.6,0.405504]
[1763541661638,0.97604963,3094.9,3093.7,0.4734]
[1763541661840,0.67761878,3094.8,3093.7,0.4734]
[1763541662059,0.00904963,3094.7,3093.7,0.4734]
[1763541663364,0.67761878,3094.8,3093.7,0.4734]
[1763541663801,0.00904963,3094.7,3093.7,0.4734]
[1763541665400,0.86828264,3094.5,3093.7,0.4734]
[1763541665554,0.69238784,3094.4,3093.7,0.4734]
[1763541666155,1.55162085,3094.3,3093.7,0.4734]
[1763541666462,0.68333821,3094.2,3093.7,0.4734]
[1763541666659,0.68333821,3094.1,3093.7,0.4734]
[1763541666879,0.68333821,3094.0,3093.7,0.4734]
[1763541667075,0.68333821,3093.9,3093.7,0.4734]
[1763541667259,0.86828264,3094.3,3093.7,0.4734]
[1763541667260,0.68333821,3093.8,3093.7,0.4734]
[1763541667672,0.68333821,3093.8,3093.7,0.9404]
[1763541669180,1.55293642,3093.8,3093.7,0.9404]
[1763541669911,0.68333821,3093.8,3093.7,0.9404]
[1763541670194,1.8392979,3093.8,3093.7,0.9404]
[1763541671255,1.84415579,3093.8,3093.7,0.9404]
[1763541672301,2.42190022,3093.8,3093.4,0.1926]
[1763541672612,1.74245508,3093.5,3093.4,0.1926]
[1763541672781,2.42579329,3093.5,3093.4,0.6789]
[1763541672959,2.42579329,3093.5,3093.4,1.1459]
[1763541673161,2.42499329,3093.5,3093.4,1.1459]
[1763541673360,2.72763666,3093.5,3093.4,1.1459]
[1763541673585,2.72763666,3093.5,3093.3,0.001]
[1763541673787,0.9860145,3093.4,3093.3,0.001]
[1763541674025,0.68333821,3093.4,3093.3,0.001]
[1763541674325,0.68333821,3093.4,3093.3,0.9543]
[1763541674619,1.84561764,3093.4,3093.3,1.359804]
[1763541674824,1.84557921,3093.4,3093.3,1.359804]
[1763541675231,0.68333821,3093.4,3093.3,1.359804]
[1763541676625,1.55523411,3093.4,3093.3,1.359804]
[1763541677402,0.68333821,3093.4,3093.3,1.359804]
[1763541681015,0.68333821,3093.4,3093.3,0.468]
[1763541681645,1.55528867,3093.4,3093.3,0.468]
[1763541682108,0.68333821,3093.4,3093.3,0.468]
[1763541682515,0.68333821,3093.4,3093.3,0.001]
[1763541682710,0.86789613,3093.4,3093.3,0.001]
[1763541682921,0.68333821,3093.4,3093.3,0.001]
[1763541683146,0.84873821,3093.4,3093.3,0.001]
[1763541683327,1.15165325,3093.4,3093.3,0.001]
[1763541684112,1.64795325,3093.4,3093.3,0.001]
[1763541684643,1.64795325,3093.4,3092.9,0.001]
[1763541684815,1.16408839,3093.0,3092.9,0.001]
[1763541685015,2.15034164,3093.0,3092.9,0.001]
[1763541685318,0.98625325,3093.0,3092.9,0.9474]
[1763541687064,1.64795325,3093.0,3092.9,0.001]
[1763541687218,1.15104857,3093.0,3092.9,0.4856]
[1763541687418,2.14962971,3093.0,3092.9,0.4856]
[1763541687621,1.15775325,3093.0,3092.9,0.001]
[1763541687832,1.64795325,3093.0,3092.9,0.001]
[1763541689973,1.64776553,3093.0,3092.9,0.001]
[1763541690269,2.97466426,3093.0,3092.9,0.001]
[1763541690951,1.81254208,3093.0,3092.9,0.001]
[1763541692634,2.97341782,3093.0,3092.9,0.001]
[1763541692842,1.81254208,3093.0,3092.9,0.001]
[1763541693376,2.71953472,3093.0,3092.9,0.001]
[1763541693988,5.30531449,3093.0,3092.9,0.001]
[1763541694185,0.405504,3092.9,3092.6,0.001]
[1763541694365,1.10059264,3092.7,3092.6,0.001]
[1763541694674,3.82621607,3092.7,3092.6,0.001]
[1763541694834,1.67316553,3092.7,3092.6,0.001]
[1763541695040,4.31978373,3092.7,3092.6,0.001]
[1763541695237,4.72528773,3092.7,3092.6,0.001]
[1763541695470,5.1978165,3092.7,3092.6,0.001]
[1763541695682,4.7923125,3092.7,3092.6,0.001]
[1763541696052,4.80136213,3092.7,3092.6,0.001]
[1763541696248,3.46724057,3092.7,3092.6,0.001]
[1763541696581,3.06441267,3092.7,3092.6,0.001]
[1763541697155,3.93281061,3092.7,3092.6,0.001]
[1763541697484,3.0734623,3092.7,3092.6,0.001]
[1763541697669,3.06441267,3092.7,3092.6,0.001]
[1763541697866,3.93281061,3092.7,3092.6,0.001]
[1763541698188,3.06361267,3092.7,3092.6,0.001]
[1763541698354,3.93201061,3092.7,3092.6,0.001]
[1763541699186,4.33751461,3092.7,3092.6,0.001]
[1763541699487,3.4781663,3092.7,3092.6,0.001]
[1763541699775,1.31249664,3092.0,3091.8,0.05]
[1763541699940,2.1091839,3091.9,3091.8,0.05]
[1763541700139,2.5935839,3091.9,3091.8,0.05]
[1763541700862,1.9185839,3091.9,3091.8,0.05]
[1763541701041,1.48369264,3091.9,3091.8,0.05]
[1763541701367,1.48369264,3091.9,3091.8,0.04]
[1763541701738,0.92079264,3091.9,3091.8,0.04]
[1763541702080,0.99929264,3091.9,3091.8,0.04]
[1763541702251,8.71005219,3091.9,3091.8,0.04]
[1763541702576,10.27203426,3091.9,3091.8,0.04]
[1763541702869,3.05428329,3091.9,3091.8,0.04]
[1763541703378,2.16437929,3091.9,3091.8,0.04]
[1763541703581,2.34766094,3091.9,3091.8,0.04]
[1763541703736,2.6576132,3091.9,3091.8,0.04]
[1763541703935,2.34766094,3091.9,3091.8,0.04]
[1763541704162,2.35671057,3091.9,3091.8,0.04]
[1763541704642,2.65753655,3091.9,3091.8,0.04]
[1763541704839,2.64848692,3091.9,3091.8,0.04]
[1763541706044,2.34766094,3091.9,3091.8,0.04]
[1763541708099,1.86326094,3091.9,3091.8,0.04]
[1763541708296,0.00904963,3092.3,3091.8,0.5053]
[1763541708601,0.00904963,3092.3,3091.8,0.04]
[1763541708795,0.99404166,3092.5,3091.8,0.04]
[1763541708963,1.0409386,3092.6,3091.8,0.5266]
[1763541709165,0.34781663,3092.6,3091.8,0.5266]
[1763541709399,0.48961137,3092.7,3091.8,0.5266]
[1763541710001,0.1887,3092.7,3091.8,0.5266]
[1763541710197,0.48961137,3092.7,3091.8,0.5266]
[1763541710679,0.1887,3092.7,3091.8,0.5266]
[1763541710880,0.48961137,3092.7,3091.8,0.5266]